[Event "*** Titled Tuesday Blitz"]
[Site "Chess.com"]
[Date "2020.04.07"]
[Round "7"]
[White "michaelk123"]
[Black "Chesswizard_2007"]
[Result "1-0"]
[WhiteElo "2441"]
[BlackElo "2613"]
[TimeControl "180+1"]
[EndTime "14:18:23 PDT"]
[Termination "michaelk123 won on time"]

1. e4 {[%clk 0:03:00.9]} 1... c5 {[%clk 0:02:55.3]} 2. Nf3 {[%clk 0:03:01]} 2...
e6 {[%clk 0:02:52.6]} 3. d4 {[%clk 0:03:01.4]} 3... cxd4 {[%clk 0:02:53.5]} 4.
Nxd4 {[%clk 0:03:01.8]} 4... a6 {[%clk 0:02:53.2]} 5. c4 {[%clk 0:03:01.8]} 5...
Nf6 {[%clk 0:02:40.3]} 6. Nc3 {[%clk 0:03:02.3]} 6... Qc7 {[%clk 0:02:30.1]} 7.
Be2 {[%clk 0:03:00.7]} 7... Nc6 {[%clk 0:02:08.8]} 8. Be3 {[%clk 0:02:58.2]}
8... Be7 {[%clk 0:02:08]} 9. O-O {[%clk 0:02:57.6]} 9... O-O {[%clk 0:02:08.1]}
10. Qd2 {[%clk 0:02:56.7]} 10... b6 {[%clk 0:02:08.2]} 11. Rac1 {[%clk 0:02:56]}
11... Bb7 {[%clk 0:02:08.4]} 12. Rfd1 {[%clk 0:02:43.7]} 12... Rfd8 {[%clk
0:02:04.2]} 13. f3 {[%clk 0:02:37.4]} 13... Na5 {[%clk 0:01:37.1]} 14. Bf1
{[%clk 0:02:31.5]} 14... Rac8 {[%clk 0:01:15.5]} 15. Qf2 {[%clk 0:02:28.3]}
15... Qb8 {[%clk 0:01:14.1]} 16. Na4 {[%clk 0:02:16.6]} 16... Ba8 {[%clk
0:01:07.1]} 17. Nb3 {[%clk 0:01:58.4]} 17... Nxb3 {[%clk 0:00:49.5]} 18. axb3
{[%clk 0:01:59.3]} 18... Bd6 {[%clk 0:00:48.2]} 19. g3 {[%clk 0:01:53.9]} 19...
Bc5 {[%clk 0:00:39.3]} 20. Nxc5 {[%clk 0:01:50.2]} 20... bxc5 {[%clk 0:00:40.2]}
21. Bxc5 {[%clk 0:01:47.3]} 21... d6 {[%clk 0:00:37.3]} 22. Bd4 {[%clk
0:01:46.2]} 22... Nd7 {[%clk 0:00:31.5]} 23. Bc3 {[%clk 0:01:34]} 23... Nc5
{[%clk 0:00:31.4]} 24. b4 {[%clk 0:01:34]} 24... Na4 {[%clk 0:00:31.7]} 25. Qd4
{[%clk 0:01:29.9]} 25... Nxc3 {[%clk 0:00:28.3]} 26. bxc3 {[%clk 0:01:27.5]}
26... Bb7 {[%clk 0:00:22]} 27. Ra1 {[%clk 0:01:27.5]} 27... Qc7 {[%clk 0:00:22]}
28. Ra5 {[%clk 0:01:25.1]} 28... h6 {[%clk 0:00:22.1]} 29. Be2 {[%clk
0:01:15.3]} 29... Qe7 {[%clk 0:00:19.2]} 30. Qe3 {[%clk 0:01:12.2]} 30... Qf6
{[%clk 0:00:18.2]} 31. Kf2 {[%clk 0:01:10.6]} 31... d5 {[%clk 0:00:17.3]} 32. e5
{[%clk 0:01:01.1]} 32... Qg6 {[%clk 0:00:15.1]} 33. c5 {[%clk 0:00:55.6]} 33...
Qh5 {[%clk 0:00:13.8]} 34. h4 {[%clk 0:00:51.7]} 34... Qf5 {[%clk 0:00:13.3]}
35. Bd3 {[%clk 0:00:49.6]} 35... Qh3 {[%clk 0:00:13.2]} 36. Bf1 {[%clk
0:00:45.9]} 36... Qh2+ {[%clk 0:00:12.3]} 37. Bg2 {[%clk 0:00:45.6]} 37... d4
{[%clk 0:00:11.5]} 38. cxd4 {[%clk 0:00:43.9]} 38... Bd5 {[%clk 0:00:01.2]} 39.
Rh1 {[%clk 0:00:42.2]} 39... Rxc5 {[%clk 0:00:01.6]} 40. bxc5 {[%clk 0:00:41.2]}
40... Qxg2+ {[%clk 0:00:01.5]} 41. Kxg2 {[%clk 0:00:41.1]} 1-0

[Event "*** Titled Tuesday Blitz"]
[Site "Chess.com"]
[Date "2020.04.07"]
[Round "7"]
[White "Borsuk_Konstantin"]
[Black "Mbneu"]
[Result "1-0"]
[WhiteElo "2458"]
[BlackElo "2262"]
[TimeControl "180+1"]
[EndTime "14:18:24 PDT"]
[Termination "Borsuk_Konstantin won on time"]

1. d4 {[%clk 0:03:00.9]} 1... Nf6 {[%clk 0:02:59]} 2. c4 {[%clk 0:03:01.4]} 2...
c5 {[%clk 0:02:58.2]} 3. d5 {[%clk 0:03:01.1]} 3... e6 {[%clk 0:02:58.5]} 4. Nc3
{[%clk 0:02:59.9]} 4... exd5 {[%clk 0:02:58.4]} 5. cxd5 {[%clk 0:03:00.8]} 5...
d6 {[%clk 0:02:58.9]} 6. Nf3 {[%clk 0:03:00.7]} 6... g6 {[%clk 0:02:59.3]} 7.
Nd2 {[%clk 0:03:01.1]} 7... Bg7 {[%clk 0:02:59]} 8. e4 {[%clk 0:03:01.6]} 8...
O-O {[%clk 0:02:57.8]} 9. Be2 {[%clk 0:03:02]} 9... a6 {[%clk 0:02:57.8]} 10. a4
{[%clk 0:03:01.4]} 10... Re8 {[%clk 0:02:56]} 11. O-O {[%clk 0:03:00.4]} 11...
Nbd7 {[%clk 0:02:53.6]} 12. Ra3 {[%clk 0:03:00.2]} 12... Ne5 {[%clk 0:02:41.2]}
13. h3 {[%clk 0:02:59.4]} 13... g5 {[%clk 0:02:37.2]} 14. Qc2 {[%clk 0:02:44]}
14... Ng6 {[%clk 0:02:11.1]} 15. Nc4 {[%clk 0:02:41.4]} 15... h6 {[%clk
0:02:07.4]} 16. Rb3 {[%clk 0:02:39]} 16... g4 {[%clk 0:01:51.7]} 17. Rb6 {[%clk
0:02:19.5]} 17... gxh3 {[%clk 0:01:48.4]} 18. Rxd6 {[%clk 0:02:14.3]} 18... hxg2
{[%clk 0:01:28.4]} 19. Rxd8 {[%clk 0:02:12.1]} 19... gxf1=Q+ {[%clk 0:01:26.9]}
20. Bxf1 {[%clk 0:02:02.6]} 20... Rxd8 {[%clk 0:01:26.9]} 21. f4 {[%clk
0:01:33.8]} 21... Ng4 {[%clk 0:01:00.3]} 22. e5 {[%clk 0:01:29.9]} 22... Nh4
{[%clk 0:00:57.6]} 23. Be2 {[%clk 0:01:21.4]} 23... Bf5 {[%clk 0:00:55.7]} 24.
Qb3 {[%clk 0:01:17.9]} 24... h5 {[%clk 0:00:50.8]} 25. Qxb7 {[%clk 0:01:11.4]}
25... Rab8 {[%clk 0:00:42.8]} 26. Qe7 {[%clk 0:01:04.8]} 26... Ng6 {[%clk
0:00:39.3]} 27. Qg5 {[%clk 0:01:04.4]} 27... Nh6 {[%clk 0:00:19.5]} 28. Bxh5
{[%clk 0:00:55.1]} 28... Rb4 {[%clk 0:00:18.1]} 29. Qxd8+ {[%clk 0:00:54.3]}
29... Kh7 {[%clk 0:00:17.1]} 30. Be2 {[%clk 0:00:53.1]} 30... Bg4 {[%clk
0:00:13.8]} 31. Bxg4 {[%clk 0:00:47.9]} 31... Nxg4 {[%clk 0:00:13.2]} 32. Nd6
{[%clk 0:00:47.1]} 32... Rd4 {[%clk 0:00:10.9]} 33. Nxf7 {[%clk 0:00:42.9]}
33... Rd3 {[%clk 0:00:10.5]} 34. Ng5+ {[%clk 0:00:42.2]} 34... Kh6 {[%clk
0:00:09.9]} 35. Nf7+ {[%clk 0:00:34.9]} 35... Kh7 {[%clk 0:00:10.1]} 36. Kg2
{[%clk 0:00:32.5]} 1-0

[Event "*** Titled Tuesday Blitz"]
[Site "Chess.com"]
[Date "2020.04.07"]
[Round "7"]
[White "PowerThinking2650"]
[Black "EnergeticHay"]
[Result "1-0"]
[WhiteElo "2357"]
[BlackElo "2184"]
[TimeControl "180+1"]
[EndTime "14:18:26 PDT"]
[Termination "PowerThinking2650 won by resignation"]

1. e4 {[%clk 0:03:00.7]} 1... c5 {[%clk 0:02:59.2]} 2. Nf3 {[%clk 0:02:57.3]}
2... d6 {[%clk 0:02:59]} 3. d4 {[%clk 0:02:56.6]} 3... cxd4 {[%clk 0:02:59.9]}
4. Nxd4 {[%clk 0:02:54.4]} 4... Nf6 {[%clk 0:03:00.2]} 5. Nc3 {[%clk 0:02:52.5]}
5... a6 {[%clk 0:03:00.5]} 6. Be3 {[%clk 0:02:49.3]} 6... e6 {[%clk 0:02:59.7]}
7. f3 {[%clk 0:02:46.2]} 7... b5 {[%clk 0:02:59.3]} 8. Qd2 {[%clk 0:02:46.2]}
8... Nbd7 {[%clk 0:02:58.5]} 9. g4 {[%clk 0:02:44.4]} 9... h6 {[%clk 0:02:58.2]}
10. h4 {[%clk 0:02:37.1]} 10... Qc7 {[%clk 0:02:55.8]} 11. O-O-O {[%clk
0:02:31.8]} 11... b4 {[%clk 0:02:55.5]} 12. Nce2 {[%clk 0:02:31.8]} 12... d5
{[%clk 0:02:55.7]} 13. exd5 {[%clk 0:02:26]} 13... Nxd5 {[%clk 0:02:56.6]} 14.
Nf4 {[%clk 0:02:26.1]} 14... Bb7 {[%clk 0:02:26.4]} 15. Bd3 {[%clk 0:02:01.6]}
15... Bd6 {[%clk 0:02:07.2]} 16. Nfxe6 {[%clk 0:01:53]} 16... fxe6 {[%clk
0:02:06]} 17. Nxe6 {[%clk 0:01:48.2]} 17... Qa5 {[%clk 0:02:03.5]} 18. Nxg7+
{[%clk 0:01:36.7]} 18... Kf7 {[%clk 0:01:55.1]} 19. Bc4 {[%clk 0:00:48.4]} 19...
Nf6 {[%clk 0:01:50.6]} 20. Nf5 {[%clk 0:00:44.9]} 20... Be5 {[%clk 0:01:39.2]}
21. Bd4 {[%clk 0:00:40.6]} 21... Bxd4 {[%clk 0:01:35.8]} 22. Qxd4 {[%clk
0:00:40.4]} 22... Rad8 {[%clk 0:01:31.1]} 23. g5 {[%clk 0:00:36]} 23... Ne8
{[%clk 0:01:28.4]} 24. Qxh8 {[%clk 0:00:29.5]} 24... Qc5 {[%clk 0:01:09.7]} 25.
Qh7+ {[%clk 0:00:26.5]} 25... Kf8 {[%clk 0:01:09.8]} 26. Qxh6+ {[%clk
0:00:21.6]} 26... Kg8 {[%clk 0:01:09.8]} 27. Qg6+ {[%clk 0:00:20.6]} 27... Kh8
{[%clk 0:01:05.9]} 28. Rhe1 {[%clk 0:00:14.4]} 28... Qf8 {[%clk 0:00:55.9]} 29.
Nh6 {[%clk 0:00:11.6]} 29... Qf4+ {[%clk 0:00:31.8]} 30. Kb1 {[%clk 0:00:11]}
30... Nd6 {[%clk 0:00:24.6]} 31. Bxd5 {[%clk 0:00:09.8]} 31... Bxd5 {[%clk
0:00:20.4]} 32. Rxd5 {[%clk 0:00:08.7]} 32... Qg3 {[%clk 0:00:21.3]} 33. Rdd1
{[%clk 0:00:08.1]} 33... Qf4 {[%clk 0:00:20.8]} 34. Rxd6 {[%clk 0:00:06.2]} 1-0

[Event "*** Titled Tuesday Blitz"]
[Site "Chess.com"]
[Date "2020.04.07"]
[Round "7"]
[White "davigator"]
[Black "Bagirova"]
[Result "1-0"]
[WhiteElo "2338"]
[BlackElo "2166"]
[TimeControl "180+1"]
[EndTime "14:18:27 PDT"]
[Termination "davigator won by resignation"]

1. e4 {[%clk 0:03:00.9]} 1... c5 {[%clk 0:02:58.6]} 2. Nf3 {[%clk 0:02:59.9]}
2... d6 {[%clk 0:02:57.3]} 3. d4 {[%clk 0:02:59.2]} 3... cxd4 {[%clk 0:02:57.5]}
4. Nxd4 {[%clk 0:02:59.7]} 4... Nf6 {[%clk 0:02:57.9]} 5. Nc3 {[%clk 0:02:59]}
5... a6 {[%clk 0:02:58.3]} 6. Bg5 {[%clk 0:02:57.9]} 6... e6 {[%clk 0:02:58.2]}
7. f4 {[%clk 0:02:57.4]} 7... Be7 {[%clk 0:02:57.6]} 8. Qd2 {[%clk 0:02:56.7]}
8... Qc7 {[%clk 0:02:57]} 9. O-O-O {[%clk 0:02:55.9]} 9... O-O {[%clk
0:02:56.9]} 10. Bd3 {[%clk 0:02:55.4]} 10... Nc6 {[%clk 0:02:56.2]} 11. Nf3
{[%clk 0:02:54]} 11... b5 {[%clk 0:02:53.2]} 12. Rhe1 {[%clk 0:02:52.6]} 12...
b4 {[%clk 0:02:52.7]} 13. Ne2 {[%clk 0:02:51.9]} 13... a5 {[%clk 0:02:47]} 14.
Ned4 {[%clk 0:02:51.2]} 14... Nxd4 {[%clk 0:02:28.9]} 15. Nxd4 {[%clk
0:02:49.4]} 15... d5 {[%clk 0:02:28.8]} 16. e5 {[%clk 0:02:46.9]} 16... Ne8
{[%clk 0:02:28.3]} 17. Bxe7 {[%clk 0:02:45.3]} 17... Qxe7 {[%clk 0:02:27.3]} 18.
f5 {[%clk 0:02:45.2]} 18... a4 {[%clk 0:02:20]} 19. Nc6 {[%clk 0:02:39.9]} 19...
Qb7 {[%clk 0:02:02.6]} 20. Nxb4 {[%clk 0:02:39]} 20... a3 {[%clk 0:01:55.3]} 21.
b3 {[%clk 0:02:38.3]} 21... Rb8 {[%clk 0:01:50.3]} 22. c3 {[%clk 0:02:35.7]}
22... d4 {[%clk 0:01:48]} 23. Nc2 {[%clk 0:02:35]} 23... dxc3 {[%clk 0:01:44.2]}
24. Qg5 {[%clk 0:02:29.7]} 24... exf5 {[%clk 0:01:37.1]} 25. Bxf5 {[%clk
0:02:28.9]} 25... Bxf5 {[%clk 0:01:35.2]} 26. Qxf5 {[%clk 0:02:28.2]} 26... Nc7
{[%clk 0:01:20.9]} 27. Rd7 {[%clk 0:02:11.1]} 27... Rbd8 {[%clk 0:01:06.3]} 28.
g4 {[%clk 0:01:59.7]} 28... Rxd7 {[%clk 0:01:05.3]} 29. Qxd7 {[%clk 0:01:58.8]}
29... Qb6 {[%clk 0:01:00.3]} 30. Qd6 {[%clk 0:01:55.6]} 30... Qa7 {[%clk
0:00:56.6]} 31. h4 {[%clk 0:01:45.3]} 31... Ne6 {[%clk 0:00:54.5]} 32. Qb4
{[%clk 0:01:42.9]} 32... Rc8 {[%clk 0:00:47.1]} 33. h5 {[%clk 0:01:37.7]} 33...
Qf2 {[%clk 0:00:45.4]} 34. Rd1 {[%clk 0:01:29.9]} 34... Nf4 {[%clk 0:00:29.3]}
35. Kb1 {[%clk 0:01:25.9]} 35... Nd3 {[%clk 0:00:20.3]} 36. Qe4 {[%clk
0:01:00.5]} 36... Nb2 {[%clk 0:00:18.8]} 37. Re1 {[%clk 0:00:54.2]} 37... Rd8
{[%clk 0:00:18.2]} 38. e6 {[%clk 0:00:50.7]} 38... Qxe1+ {[%clk 0:00:14.8]} 39.
Qxe1 {[%clk 0:00:49.7]} 39... Rd1+ {[%clk 0:00:15]} 40. Qxd1 {[%clk 0:00:49.9]}
40... Nxd1 {[%clk 0:00:15.7]} 41. e7 {[%clk 0:00:50.4]} 1-0

[Event "*** Titled Tuesday Blitz"]
[Site "Chess.com"]
[Date "2020.04.07"]
[Round "7"]
[White "Usurpov"]
[Black "SHIVACalypso"]
[Result "1-0"]
[WhiteElo "2439"]
[BlackElo "2207"]
[TimeControl "180+1"]
[EndTime "14:18:27 PDT"]
[Termination "Usurpov won by resignation"]

1. e4 {[%clk 0:03:00.9]} 1... e6 {[%clk 0:03:00.4]} 2. d4 {[%clk 0:02:59.6]}
2... d5 {[%clk 0:03:00.5]} 3. e5 {[%clk 0:03:00]} 3... c5 {[%clk 0:03:00.3]} 4.
c3 {[%clk 0:03:00.6]} 4... Nc6 {[%clk 0:02:59.7]} 5. Nf3 {[%clk 0:03:00.9]} 5...
Qb6 {[%clk 0:02:59.8]} 6. a3 {[%clk 0:03:00.9]} 6... f6 {[%clk 0:02:59.4]} 7.
Bd3 {[%clk 0:02:58.4]} 7... fxe5 {[%clk 0:02:57.9]} 8. Nxe5 {[%clk 0:02:58.9]}
8... Nxe5 {[%clk 0:02:55.9]} 9. dxe5 {[%clk 0:02:58.8]} 9... g6 {[%clk
0:02:54.1]} 10. O-O {[%clk 0:02:56.4]} 10... Bg7 {[%clk 0:02:54]} 11. c4 {[%clk
0:02:56.3]} 11... d4 {[%clk 0:02:44.7]} 12. f4 {[%clk 0:02:45.4]} 12... Qc7
{[%clk 0:02:40.6]} 13. b4 {[%clk 0:02:43]} 13... b6 {[%clk 0:02:39.1]} 14. Nd2
{[%clk 0:02:40.1]} 14... Ne7 {[%clk 0:02:31.7]} 15. Ne4 {[%clk 0:02:37.8]} 15...
O-O {[%clk 0:02:24.8]} 16. Bd2 {[%clk 0:02:33.5]} 16... Bb7 {[%clk 0:02:13.8]}
17. Qe2 {[%clk 0:02:32.2]} 17... Rad8 {[%clk 0:01:58.6]} 18. h3 {[%clk
0:02:28.4]} 18... a5 {[%clk 0:01:22.7]} 19. bxa5 {[%clk 0:02:24.9]} 19... bxa5
{[%clk 0:01:23.6]} 20. Rab1 {[%clk 0:02:24.5]} 20... Rb8 {[%clk 0:01:18.1]} 21.
Ng5 {[%clk 0:01:54.6]} 21... Bc8 {[%clk 0:01:01.1]} 22. Bxa5 {[%clk 0:01:41.8]}
22... Qa7 {[%clk 0:01:00.5]} 23. Rxb8 {[%clk 0:01:37.5]} 23... Qxb8 {[%clk
0:01:01.4]} 24. Rb1 {[%clk 0:01:35.6]} 24... Qa8 {[%clk 0:00:59.8]} 25. Bc7
{[%clk 0:01:31.3]} 25... Qxa3 {[%clk 0:00:53.3]} 26. Bd6 {[%clk 0:01:30.9]}
26... Re8 {[%clk 0:00:52.8]} 27. Rb8 {[%clk 0:01:26]} 27... Nc6 {[%clk
0:00:47.8]} 28. Rb1 {[%clk 0:01:16]} 28... Nb4 {[%clk 0:00:47.1]} 29. Be4 {[%clk
0:01:12.4]} 29... Ba6 {[%clk 0:00:36.8]} 30. Bxc5 {[%clk 0:01:07.8]} 30... d3
{[%clk 0:00:36.8]} 31. Qd2 {[%clk 0:00:58]} 31... Qa2 {[%clk 0:00:30.5]} 32.
Qxb4 {[%clk 0:00:53.5]} 32... Bxc4 {[%clk 0:00:30.3]} 33. Qb2 {[%clk 0:00:47]}
33... Qa4 {[%clk 0:00:29.6]} 34. Be3 {[%clk 0:00:44.6]} 34... h6 {[%clk
0:00:27.3]} 35. Nf3 {[%clk 0:00:42.9]} 35... Rd8 {[%clk 0:00:22.8]} 36. Nd2
{[%clk 0:00:36]} 36... Ba6 {[%clk 0:00:16.9]} 37. Bxg6 {[%clk 0:00:34]} 37...
Qc6 {[%clk 0:00:13.4]} 38. Qb6 {[%clk 0:00:32.8]} 38... Qa4 {[%clk 0:00:11.2]}
39. Qxd8+ {[%clk 0:00:31.5]} 1-0

[Event "*** Titled Tuesday Blitz"]
[Site "Chess.com"]
[Date "2020.04.07"]
[Round "7"]
[White "chessdjw"]
[Black "dragos420"]
[Result "1-0"]
[WhiteElo "2650"]
[BlackElo "2514"]
[TimeControl "180+1"]
[EndTime "14:18:28 PDT"]
[Termination "chessdjw won by resignation"]

1. e4 {[%clk 0:03:00.9]} 1... e5 {[%clk 0:02:59.5]} 2. Nf3 {[%clk 0:02:54.3]}
2... Nc6 {[%clk 0:02:58.4]} 3. Bc4 {[%clk 0:02:55]} 3... Nf6 {[%clk 0:02:57.1]}
4. d3 {[%clk 0:02:55]} 4... h6 {[%clk 0:02:57.2]} 5. c3 {[%clk 0:02:54.2]} 5...
d6 {[%clk 0:02:57.2]} 6. O-O {[%clk 0:02:49.2]} 6... g5 {[%clk 0:02:56.6]} 7. b4
{[%clk 0:02:46.3]} 7... Bg7 {[%clk 0:02:55.3]} 8. a4 {[%clk 0:02:46]} 8... O-O
{[%clk 0:02:53.4]} 9. Na3 {[%clk 0:02:46.6]} 9... a5 {[%clk 0:02:51]} 10. b5
{[%clk 0:02:46.4]} 10... Ne7 {[%clk 0:02:51.2]} 11. Bb3 {[%clk 0:02:47.3]} 11...
Ng6 {[%clk 0:02:35.9]} 12. Nc4 {[%clk 0:02:48]} 12... Be6 {[%clk 0:02:25.3]} 13.
Re1 {[%clk 0:02:47.1]} 13... Nd7 {[%clk 0:02:08.7]} 14. Ne3 {[%clk 0:02:44.8]}
14... Nf4 {[%clk 0:02:01.8]} 15. d4 {[%clk 0:02:40.3]} 15... Bxb3 {[%clk
0:01:43.4]} 16. Qxb3 {[%clk 0:02:38.6]} 16... Nd3 {[%clk 0:01:37.5]} 17. Rd1
{[%clk 0:02:39]} 17... Nxc1 {[%clk 0:01:37.6]} 18. Raxc1 {[%clk 0:02:39.7]}
18... Kh7 {[%clk 0:01:30.5]} 19. h3 {[%clk 0:02:39.1]} 19... Qe7 {[%clk
0:01:13.7]} 20. Nf5 {[%clk 0:02:39.1]} 20... Qe6 {[%clk 0:01:06]} 21. Qb1 {[%clk
0:02:33.6]} 21... Rae8 {[%clk 0:00:58.8]} 22. Re1 {[%clk 0:02:29.2]} 22... Qc4
{[%clk 0:00:47.6]} 23. Qc2 {[%clk 0:02:12.5]} 23... Nb6 {[%clk 0:00:40.6]} 24.
Ra1 {[%clk 0:02:03.1]} 24... exd4 {[%clk 0:00:31.5]} 25. N3xd4 {[%clk
0:01:59.3]} 25... Be5 {[%clk 0:00:23.4]} 26. Ne3 {[%clk 0:01:51]} 26... Qc5
{[%clk 0:00:21.7]} 27. Qd3 {[%clk 0:01:45.4]} 27... Nd7 {[%clk 0:00:09.5]} 28.
Nc4 {[%clk 0:01:35]} 28... Qa7 {[%clk 0:00:08.2]} 29. g3 {[%clk 0:01:20.2]}
29... Nc5 {[%clk 0:00:08.2]} 30. Qc2 {[%clk 0:01:18.8]} 30... Ne6 {[%clk
0:00:08]} 31. Nb3 {[%clk 0:01:07.1]} 31... Bxg3 {[%clk 0:00:05.3]} 32. b6 {[%clk
0:01:03.8]} 32... cxb6 {[%clk 0:00:05.7]} 33. fxg3 {[%clk 0:01:04.2]} 33... b5+
{[%clk 0:00:05.9]} 34. Ne3 {[%clk 0:01:04.9]} 34... b4 {[%clk 0:00:04.4]} 35.
cxb4 {[%clk 0:00:59.9]} 35... axb4 {[%clk 0:00:05.3]} 36. Kg2 {[%clk 0:01:00.1]}
36... Rc8 {[%clk 0:00:04.9]} 37. Qf2 {[%clk 0:00:54]} 37... Rc3 {[%clk
0:00:03.8]} 38. Nd2 {[%clk 0:00:52.5]} 38... Rfc8 {[%clk 0:00:03.3]} 39. Qxf7+
{[%clk 0:00:49.9]} 39... Ng7 {[%clk 0:00:03.6]} 40. Nd5 {[%clk 0:00:49.2]} 40...
Rc2 {[%clk 0:00:03.1]} 41. Re2 {[%clk 0:00:46.7]} 41... Qd4 {[%clk 0:00:03.1]}
42. Nf6+ {[%clk 0:00:45.7]} 42... Kh8 {[%clk 0:00:03.1]} 43. Qg6 {[%clk
0:00:46.3]} 1-0

[Event "*** Titled Tuesday Blitz"]
[Site "Chess.com"]
[Date "2020.04.07"]
[Round "7"]
[White "Alliswell998"]
[Black "RestartingChess"]
[Result "1-0"]
[WhiteElo "2536"]
[BlackElo "2372"]
[TimeControl "180+1"]
[EndTime "14:18:28 PDT"]
[Termination "Alliswell998 won by resignation"]

1. e4 {[%clk 0:03:00.9]} 1... b6 {[%clk 0:02:58.9]} 2. Nc3 {[%clk 0:03:00.7]}
2... Bb7 {[%clk 0:02:59.4]} 3. f4 {[%clk 0:03:01.1]} 3... g6 {[%clk 0:02:59.4]}
4. Nf3 {[%clk 0:03:01.6]} 4... Bg7 {[%clk 0:03:00]} 5. d3 {[%clk 0:02:59.7]}
5... e6 {[%clk 0:03:00.6]} 6. Be2 {[%clk 0:03:00.1]} 6... Ne7 {[%clk 0:03:01.2]}
7. O-O {[%clk 0:03:00.6]} 7... d5 {[%clk 0:03:01.8]} 8. e5 {[%clk 0:02:58.5]}
8... d4 {[%clk 0:03:00.5]} 9. Ne4 {[%clk 0:02:58.3]} 9... Bxe4 {[%clk
0:02:54.7]} 10. dxe4 {[%clk 0:02:59.2]} 10... c5 {[%clk 0:02:55.1]} 11. c3
{[%clk 0:02:53.4]} 11... dxc3 {[%clk 0:02:37.5]} 12. Qxd8+ {[%clk 0:02:54.3]}
12... Kxd8 {[%clk 0:02:37.9]} 13. bxc3 {[%clk 0:02:51.6]} 13... Nec6 {[%clk
0:02:36.3]} 14. Be3 {[%clk 0:02:45.8]} 14... Ke7 {[%clk 0:02:33.6]} 15. Rad1
{[%clk 0:02:43.9]} 15... Na5 {[%clk 0:02:15]} 16. f5 {[%clk 0:02:39.6]} 16...
gxf5 {[%clk 0:01:48.9]} 17. exf5 {[%clk 0:02:39.1]} 17... exf5 {[%clk
0:01:46.9]} 18. Bg5+ {[%clk 0:02:31.7]} 18... f6 {[%clk 0:01:46.5]} 19. Bh4
{[%clk 0:02:23.5]} 19... Nbc6 {[%clk 0:01:43]} 20. Bb5 {[%clk 0:02:21.9]} 20...
Rad8 {[%clk 0:01:35.8]} 21. Rde1 {[%clk 0:02:12.9]} 21... Kf7 {[%clk 0:01:27.2]}
22. e6+ {[%clk 0:01:21.1]} 22... Ke7 {[%clk 0:01:26.4]} 23. Ne5 {[%clk
0:01:12.8]} 23... Nxe5 {[%clk 0:01:12.7]} 24. Rxe5 {[%clk 0:01:13.7]} 24... Rd6
{[%clk 0:01:12.9]} 25. Bd7 {[%clk 0:01:09.2]} 25... Nc4 {[%clk 0:01:10.2]} 26.
Rexf5 {[%clk 0:01:08.9]} 26... Ne3 {[%clk 0:01:10.7]} 27. Rxf6 {[%clk
0:01:05.8]} 27... Bxf6 {[%clk 0:00:31.1]} 28. Bxf6+ {[%clk 0:01:04.1]} 28... Kf8
{[%clk 0:00:31.6]} 29. e7+ {[%clk 0:00:51.9]} 29... Kf7 {[%clk 0:00:31.8]} 30.
Bxh8+ {[%clk 0:00:51.4]} 30... Kxe7 {[%clk 0:00:32.3]} 31. Re1 {[%clk
0:00:46.3]} 31... Kxd7 {[%clk 0:00:32.7]} 32. Rxe3 {[%clk 0:00:45.8]} 32... Rd2
{[%clk 0:00:33.3]} 33. Rh3 {[%clk 0:00:38.9]} 33... Rxa2 {[%clk 0:00:30.2]} 34.
Rxh7+ {[%clk 0:00:39.5]} 34... Ke6 {[%clk 0:00:30.6]} 35. h4 {[%clk 0:00:39.9]}
35... a5 {[%clk 0:00:29.5]} 36. Rb7 {[%clk 0:00:39.5]} 36... Rb2 {[%clk
0:00:28.7]} 37. h5 {[%clk 0:00:35.5]} 37... a4 {[%clk 0:00:25.1]} 38. Ra7 {[%clk
0:00:35.5]} 38... b5 {[%clk 0:00:15.6]} 39. Kh2 {[%clk 0:00:33.4]} 39... Kf5
{[%clk 0:00:15.5]} 40. c4 {[%clk 0:00:32.9]} 40... bxc4 {[%clk 0:00:10.5]} 41.
Bxb2 {[%clk 0:00:32]} 1-0

[Event "*** Titled Tuesday Blitz"]
[Site "Chess.com"]
[Date "2020.04.07"]
[Round "7"]
[White "awesomevishesh"]
[Black "fpawn"]
[Result "1/2-1/2"]
[WhiteElo "2463"]
[BlackElo "2312"]
[TimeControl "180+1"]
[EndTime "14:18:28 PDT"]
[Termination "Game drawn by agreement"]

1. e4 {[%clk 0:03:00.9]} 1... c5 {[%clk 0:02:58.4]} 2. Nf3 {[%clk 0:03:00.4]}
2... Nc6 {[%clk 0:02:58.1]} 3. Bb5 {[%clk 0:02:59.6]} 3... g6 {[%clk 0:02:57.5]}
4. O-O {[%clk 0:02:47.3]} 4... Bg7 {[%clk 0:02:57.4]} 5. c3 {[%clk 0:02:47.3]}
5... Nf6 {[%clk 0:02:57.1]} 6. Re1 {[%clk 0:02:47.3]} 6... O-O {[%clk
0:02:56.2]} 7. d4 {[%clk 0:02:47.2]} 7... d5 {[%clk 0:02:55.4]} 8. e5 {[%clk
0:02:46.4]} 8... Ne4 {[%clk 0:02:55.2]} 9. Be3 {[%clk 0:02:46.3]} 9... cxd4
{[%clk 0:02:53.2]} 10. cxd4 {[%clk 0:02:45.9]} 10... Qb6 {[%clk 0:02:52.5]} 11.
Bxc6 {[%clk 0:02:44.9]} 11... Qxc6 {[%clk 0:02:52.4]} 12. h3 {[%clk 0:02:15.9]}
12... Bf5 {[%clk 0:02:48.2]} 13. Nbd2 {[%clk 0:02:14]} 13... Rac8 {[%clk
0:02:44.7]} 14. Rc1 {[%clk 0:02:00.2]} 14... Qxc1 {[%clk 0:02:44.4]} 15. Qxc1
{[%clk 0:01:59.3]} 15... Rxc1 {[%clk 0:02:45.3]} 16. Rxc1 {[%clk 0:02:00]} 16...
Nxd2 {[%clk 0:02:43]} 17. Nxd2 {[%clk 0:01:55.3]} 17... Rc8 {[%clk 0:02:42.3]}
18. Rxc8+ {[%clk 0:01:53.9]} 18... Bxc8 {[%clk 0:02:43.2]} 19. Nb1 {[%clk
0:01:38.9]} 19... f6 {[%clk 0:02:39.1]} 20. f4 {[%clk 0:01:38.1]} 20... b6
{[%clk 0:02:24.6]} 21. Nc3 {[%clk 0:01:37.3]} 21... e6 {[%clk 0:02:22.8]} 22.
Kf2 {[%clk 0:01:23.6]} 22... Bd7 {[%clk 0:02:21.4]} 23. Ke2 {[%clk 0:01:20]}
23... Kf7 {[%clk 0:02:21.2]} 24. Kd3 {[%clk 0:01:19]} 24... Bf8 {[%clk 0:02:21]}
25. a3 {[%clk 0:01:14.9]} 25... a5 {[%clk 0:02:13.3]} 26. Bf2 {[%clk 0:01:09.3]}
26... Be7 {[%clk 0:02:13]} 27. g4 {[%clk 0:01:03.8]} 27... f5 {[%clk 0:02:06.9]}
28. Kc2 {[%clk 0:00:41.4]} 28... h5 {[%clk 0:02:03.6]} 29. gxf5 {[%clk
0:00:38.1]} 29... gxf5 {[%clk 0:02:03.4]} 30. a4 {[%clk 0:00:25.1]} 30... Ke8
{[%clk 0:02:00.6]} 31. b3 {[%clk 0:00:24.8]} 31... Bc6 {[%clk 0:01:52]} 32. Ne2
{[%clk 0:00:24.4]} 32... Kd8 {[%clk 0:01:42]} 33. Ng1 {[%clk 0:00:23.8]} 33...
b5 {[%clk 0:01:37.4]} 34. axb5 {[%clk 0:00:23]} 34... Bxb5 {[%clk 0:01:37.5]}
35. Nf3 {[%clk 0:00:21.4]} 35... a4 {[%clk 0:01:36.2]} 36. bxa4 {[%clk
0:00:20.1]} 36... Bxa4+ {[%clk 0:01:36]} 37. Kb2 {[%clk 0:00:17.9]} 37... Ke8
{[%clk 0:01:35.6]} 38. Bh4 {[%clk 0:00:17.2]} 38... Bf8 {[%clk 0:01:27.1]} 39.
Kc3 {[%clk 0:00:15.5]} 39... Bh6 {[%clk 0:01:21.5]} 40. Bg5 {[%clk 0:00:14.5]}
40... Bf8 {[%clk 0:01:21.4]} 41. Kd2 {[%clk 0:00:13.9]} 41... Kf7 {[%clk
0:01:19.9]} 42. Ke3 {[%clk 0:00:13.8]} 42... Ba3 {[%clk 0:01:16]} 43. Kf2 {[%clk
0:00:13.2]} 43... Bd1 {[%clk 0:01:12.5]} 44. Nd2 {[%clk 0:00:09.3]} 44... Bb2
{[%clk 0:01:07.7]} 45. Ke3 {[%clk 0:00:08.6]} 45... Bc1 {[%clk 0:01:06.7]} 46.
Kd3 {[%clk 0:00:08.5]} 46... Bxd2 {[%clk 0:01:06.5]} 47. Kxd2 {[%clk 0:00:08.4]}
47... Ba4 {[%clk 0:01:06.6]} 48. Ke3 {[%clk 0:00:08]} 1/2-1/2